[Event "Mistrovství Čech mládeže 2023 - HD16"]
[Site "Harrachov, Czech Republic"]
[Date "2023.10.21"]
[Round "1.12"]
[White "Hrubý, Filip"]
[Black "Mikhno, Artem"]
[Result "0-1"]
[TimeControl "90m + 30s"]
[WhiteElo "1386"]
[BlackElo "1781"]

1. e4 {[%clk 01:30:47]} {[%emt 00:00:11]} c6 {[%clk 01:30:40]} {[%emt
00:00:20]} 2. d4 {[%clk 01:30:18]} {[%emt 00:00:59]} d5 {[%clk 01:30:57]}
{[%emt 00:00:13]} 3. e5 {[%clk 01:30:41]} {[%emt 00:00:07]} Bf5 {[%clk
01:31:00]} {[%emt 00:00:27]} 4. h4 {[%clk 01:30:29]} {[%emt 00:00:42]} h6
{[%clk 01:29:11]} {[%emt 00:02:19]} 5. Be3 {[%clk 01:22:25]} {[%emt 00:08:34]}
e6 {[%clk 01:29:14]} {[%emt 00:00:28]} 6. Bd3 {[%clk 01:20:03]} {[%emt
00:02:52]} Ne7 {[%clk 01:29:14]} {[%emt 00:00:30]} 7. Nf3 {[%clk 01:20:18]}
{[%emt 00:00:15]} Nd7 {[%clk 01:28:54]} {[%emt 00:00:51]} 8. O-O {[%clk
01:18:43]} {[%emt 00:02:05]} Bxd3 {[%clk 01:28:44]} {[%emt 00:00:40]} 9. Qxd3
{[%clk 01:19:04]} {[%emt 00:00:09]} Nf5 {[%clk 01:29:04]} {[%emt 00:00:10]} 10.
g3 {[%clk 01:17:50]} {[%emt 00:01:44]} c5 {[%clk 01:29:17]} {[%emt 00:00:18]}
11. dxc5 {[%clk 01:17:17]} {[%emt 00:01:03]} Nxe3 {[%clk 01:29:27]} {[%emt
00:00:19]} 12. Qxe3 {[%clk 01:16:54]} {[%emt 00:00:53]} Bxc5 {[%clk 01:29:50]}
{[%emt 00:00:07]} 13. Qd3 {[%clk 01:15:33]} {[%emt 00:01:48]} Qc7 {[%clk
01:30:01]} {[%emt 00:00:21]} 14. Nbd2 {[%clk 01:13:55]} {[%emt 00:02:08]} O-O
{[%clk 01:29:56]} {[%emt 00:00:36]} 15. Nb3 {[%clk 01:08:34]} {[%emt 00:05:50]}
Bb6 {[%clk 01:30:03]} {[%emt 00:00:23]} 16. Rfe1 {[%clk 01:07:53]} {[%emt
00:01:11]} f6 {[%clk 01:29:55]} {[%emt 00:00:39]} 17. Nbd4 {[%clk 00:51:28]}
{[%emt 00:16:55]} Rae8 {[%clk 01:29:30]} {[%emt 00:00:55]} 18. exf6 {[%clk
00:30:51]} {[%emt 00:21:06]} Nxf6 {[%clk 01:28:44]} {[%emt 00:01:17]} 19. Nxe6
{[%clk 00:29:44]} {[%emt 00:01:37]} Qxg3+ {[%clk 01:29:01]} {[%emt 00:00:12]}
20. Kh1 {[%clk 00:29:21]} {[%emt 00:00:54]} Bxf2 {[%clk 01:24:52]} {[%emt
00:04:40]} 21. Ng1 {[%clk 00:22:32]} {[%emt 00:07:18]} Qxh4+ {[%clk 01:23:25]}
{[%emt 00:01:57]} 22. Qh3 {[%clk 00:22:54]} {[%emt 00:00:07]} Bxe1 {[%clk
01:23:10]} {[%emt 00:00:46]} 23. Nxf8 {[%clk 00:23:14]} {[%emt 00:00:09]} Qxh3+
{[%clk 01:23:26]} {[%emt 00:00:14]} 24. Nxh3 {[%clk 00:23:35]} {[%emt
00:00:09]} Kxf8 {[%clk 01:23:51]} {[%emt 00:00:06]} 0-1

[Event "Mistrovství Čech mládeže 2023 - HD16"]
[Site "Harrachov, Czech Republic"]
[Date "2023.10.21"]
[Round "1.13"]
[White "Svoboda, Daniel"]
[Black "Archlebová, Stela"]
[Result "1-0"]
[TimeControl "90m + 30s"]
[WhiteElo "1766"]
[BlackElo "1381"]

1. e4 {[%clk 01:30:55]} {[%emt 00:00:04]} e5 {[%clk 01:30:54]} {[%emt
00:00:06]} 2. Nf3 {[%clk 01:30:52]} {[%emt 00:00:33]} Nc6 {[%clk 01:31:09]}
{[%emt 00:00:16]} 3. Nc3 {[%clk 01:30:58]} {[%emt 00:00:24]} Nf6 {[%clk
01:31:22]} {[%emt 00:00:16]} 4. d4 {[%clk 01:31:12]} {[%emt 00:00:16]} exd4
{[%clk 01:29:50]} {[%emt 00:02:02]} 5. Nxd4 {[%clk 01:31:35]} {[%emt 00:00:07]}
Nxd4 {[%clk 01:30:08]} {[%emt 00:00:12]} 6. Qxd4 {[%clk 01:31:17]} {[%emt
00:00:48]} d6 {[%clk 01:30:04]} {[%emt 00:00:34]} 7. Bg5 {[%clk 01:26:39]}
{[%emt 00:05:08]} Be7 {[%clk 01:29:47]} {[%emt 00:00:47]} 8. O-O-O {[%clk
01:24:41]} {[%emt 00:02:28]} O-O {[%clk 01:27:31]} {[%emt 00:02:46]} 9. Bc4
{[%clk 01:14:00]} {[%emt 00:11:12]} Be6 {[%clk 01:26:00]} {[%emt 00:02:01]} 10.
f4 {[%clk 00:52:00]} {[%emt 00:22:30]} Bxc4 {[%clk 01:25:53]} {[%emt 00:00:37]}
11. Qxc4 {[%clk 00:52:15]} {[%emt 00:00:15]} Qe8 {[%clk 01:24:16]} {[%emt
00:02:07]} 12. Qxc7 {[%clk 00:43:49]} {[%emt 00:08:56]} Rb8 {[%clk 01:22:56]}
{[%emt 00:01:48]} 13. e5 {[%clk 00:39:02]} {[%emt 00:05:20]} dxe5 {[%clk
01:22:40]} {[%emt 00:00:45]} 14. fxe5 {[%clk 00:38:42]} {[%emt 00:00:51]} Nd5
{[%clk 01:22:41]} {[%emt 00:00:27]} 15. Rxd5 {[%clk 00:32:14]} {[%emt
00:06:59]} Bxg5+ {[%clk 01:23:00]} {[%emt 00:00:11]} 16. Kb1 {[%clk 00:32:28]}
{[%emt 00:00:16]} Qe6 {[%clk 01:22:39]} {[%emt 00:00:50]} 17. Rhd1 {[%clk
00:25:25]} {[%emt 00:07:34]} Rfc8 {[%clk 01:22:25]} {[%emt 00:00:43]} 18. Qd7
{[%clk 00:21:20]} {[%emt 00:04:37]} Qb6 {[%clk 01:22:31]} {[%emt 00:00:21]} 19.
e6 {[%clk 00:10:12]} {[%emt 00:11:41]} Rd8 {[%clk 01:18:23]} {[%emt 00:04:39]}
20. Qxf7+ {[%clk 00:08:03]} {[%emt 00:02:38]} Kh8 {[%clk 01:18:44]} {[%emt
00:00:09]} 21. e7 {[%clk 00:05:37]} {[%emt 00:02:56]} Bxe7 {[%clk 01:14:57]}
{[%emt 00:04:16]} 22. Qxe7 {[%clk 00:04:46]} {[%emt 00:01:22]} Rxd5 {[%clk
01:14:49]} {[%emt 00:00:38]} 23. Nxd5 {[%clk 00:04:17]} {[%emt 00:00:59]} Qa5
{[%clk 01:13:29]} {[%emt 00:01:49]} 24. Qc7 {[%clk 00:03:25]} {[%emt 00:01:23]}
Qxc7 {[%clk 01:12:57]} {[%emt 00:01:01]} 25. Nxc7 {[%clk 00:03:54]} {[%emt
00:00:02]} Rf8 {[%clk 01:13:15]} {[%emt 00:00:10]} 26. Ne6 {[%clk 00:04:18]}
{[%emt 00:00:08]} Re8 {[%clk 01:13:22]} {[%emt 00:00:22]} 27. Rd8 {[%clk
00:04:42]} {[%emt 00:00:06]} Rxd8 {[%clk 01:13:46]} {[%emt 00:00:06]} 28. Nxd8
{[%clk 00:05:11]} {[%emt 00:00:01]} Kg8 {[%clk 01:13:40]} {[%emt 00:00:34]} 29.
Nxb7 {[%clk 00:05:36]} {[%emt 00:00:06]} Kf7 {[%clk 01:13:56]} {[%emt
00:00:14]} 30. Kc1 {[%clk 00:05:58]} {[%emt 00:00:08]} Ke7 {[%clk 01:14:14]}
{[%emt 00:00:11]} 31. Kd2 {[%clk 00:06:20]} {[%emt 00:00:08]} Kd7 {[%clk
01:14:30]} {[%emt 00:00:14]} 32. Nc5+ {[%clk 00:06:36]} {[%emt 00:00:14]} Kc6
{[%clk 01:14:39]} {[%emt 00:00:21]} 33. Ne4 {[%clk 00:06:58]} {[%emt 00:00:08]}
Kd5 {[%clk 01:14:47]} {[%emt 00:00:21]} 34. Kd3 {[%clk 00:07:25]} {[%emt
00:00:04]} Ke5 {[%clk 01:15:06]} {[%emt 00:00:10]} 35. b4 {[%clk 00:07:34]}
{[%emt 00:00:21]} Kd5 {[%clk 01:15:22]} {[%emt 00:00:14]} 36. c4+ {[%clk
00:07:59]} {[%emt 00:00:05]} Kc6 {[%clk 01:15:45]} {[%emt 00:00:06]} 37. Kd4
{[%clk 00:08:17]} {[%emt 00:00:12]} h6 {[%clk 01:15:59]} {[%emt 00:00:16]} 38.
b5+ {[%clk 00:08:38]} {[%emt 00:00:10]} Kc7 {[%clk 01:16:15]} {[%emt 00:00:13]}
39. c5 {[%clk 00:08:00]} {[%emt 00:01:08]} g5 {[%clk 01:16:39]} {[%emt
00:00:06]} 40. b6+ {[%clk 00:08:22]} {[%emt 00:00:09]} axb6 {[%clk 01:16:54]}
{[%emt 00:00:14]} 41. cxb6+ {[%clk 00:08:50]} {[%emt 00:00:03]} Kxb6 {[%clk
01:17:10]} {[%emt 00:00:14]} 42. Ke5 {[%clk 00:09:15]} {[%emt 00:00:04]} Kc6
{[%clk 01:17:28]} {[%emt 00:00:11]} 43. Kf5 {[%clk 00:09:35]} {[%emt 00:00:10]}
Kd7 {[%clk 01:17:52]} {[%emt 00:00:06]} 44. Kg6 {[%clk 00:09:56]} {[%emt
00:00:09]} Ke6 {[%clk 01:18:06]} {[%emt 00:00:16]} 45. a4 {[%clk 00:10:12]}
{[%emt 00:00:15]} Kd7 {[%clk 01:18:05]} {[%emt 00:00:30]} 46. Kxh6 {[%clk
00:10:34]} {[%emt 00:00:08]} Ke6 {[%clk 01:18:11]} {[%emt 00:00:25]} 47. a5
{[%clk 00:10:55]} {[%emt 00:00:09]} Kd7 {[%clk 01:18:31]} {[%emt 00:00:10]} 48.
Kxg5 {[%clk 00:11:20]} {[%emt 00:00:05]} Kc6 {[%clk 01:18:39]} {[%emt
00:00:21]} 49. h4 {[%clk 00:11:46]} {[%emt 00:00:04]} Kb5 {[%clk 01:18:55]}
{[%emt 00:00:15]} 50. h5 {[%clk 00:12:12]} {[%emt 00:00:04]} Kxa5 {[%clk
01:19:17]} {[%emt 00:00:08]} 51. h6 {[%clk 00:12:38]} {[%emt 00:00:03]} Kb5
{[%clk 01:19:41]} {[%emt 00:00:07]} 52. h7 {[%clk 00:13:04]} {[%emt 00:00:04]}
Kc4 {[%clk 01:20:02]} {[%emt 00:00:09]} 53. h8=Q {[%clk 00:13:21]} {[%emt
00:00:13]} Kd3 {[%clk 01:20:17]} {[%emt 00:00:14]} 54. Qc3+ {[%clk 00:13:40]}
{[%emt 00:00:10]} Ke2 {[%clk 01:20:32]} {[%emt 00:00:16]} 55. Qf3+ {[%clk
00:14:04]} {[%emt 00:00:07]} Ke1 {[%clk 01:20:41]} {[%emt 00:00:21]} 56. Qf2+
{[%clk 00:14:30]} {[%emt 00:00:04]} Kd1 {[%clk 01:21:01]} {[%emt 00:00:10]} 57.
Qd2# {[%clk 00:14:57]} {[%emt 00:00:03]} 1-0

[Event "Mistrovství Čech mládeže 2023 - HD16"]
[Site "Harrachov, Czech Republic"]
[Date "2023.10.21"]
[Round "1.14"]
[White "Souralová, Jana"]
[Black "Tegda, Vojtěch"]
[Result "0-1"]
[TimeControl "90m + 30s"]
[WhiteElo "1376"]
[BlackElo "1731"]

1. e4 {[%clk 01:30:56]} {[%emt 00:00:03]} e5 {[%clk 01:30:54]} {[%emt
00:00:06]} 2. Nf3 {[%clk 01:31:19]} {[%emt 00:00:07]} Nc6 {[%clk 01:31:19]}
{[%emt 00:00:06]} 3. Nc3 {[%clk 01:31:37]} {[%emt 00:00:12]} g6 {[%clk
01:25:11]} {[%emt 00:06:37]} 4. Bb5 {[%clk 01:16:52]} {[%emt 00:15:15]} Bg7
{[%clk 01:25:29]} {[%emt 00:00:12]} 5. d3 {[%clk 01:16:17]} {[%emt 00:01:05]}
Nge7 {[%clk 01:25:41]} {[%emt 00:00:18]} 6. Be3 {[%clk 01:09:05]} {[%emt
00:07:42]} O-O {[%clk 01:22:32]} {[%emt 00:03:40]} 7. O-O {[%clk 01:08:41]}
{[%emt 00:00:54]} d5 {[%clk 01:13:12]} {[%emt 00:09:50]} 8. Bc5 {[%clk
00:37:24]} {[%emt 00:31:47]} Be6 {[%clk 00:59:44]} {[%emt 00:13:58]} 9. exd5
{[%clk 00:33:08]} {[%emt 00:04:46]} Bxd5 {[%clk 00:59:16]} {[%emt 00:00:58]} 10.
Nxd5 {[%clk 00:31:28]} {[%emt 00:02:09]} Qxd5 {[%clk 00:58:38]} {[%emt
00:01:08]} 11. Bxc6 {[%clk 00:27:29]} {[%emt 00:04:30]} Qxc5 {[%clk 00:58:35]}
{[%emt 00:00:33]} 12. Bxb7 {[%clk 00:27:26]} {[%emt 00:00:33]} Rab8 {[%clk
00:58:51]} {[%emt 00:00:14]} 13. Ba6 {[%clk 00:27:40]} {[%emt 00:00:16]} Rxb2
{[%clk 00:58:24]} {[%emt 00:00:58]} 14. Bc4 {[%clk 00:26:35]} {[%emt 00:01:35]}
Rbb8 {[%clk 00:51:23]} {[%emt 00:07:31]} 15. Qd2 {[%clk 00:21:34]} {[%emt
00:05:31]} e4 {[%clk 00:50:13]} {[%emt 00:01:41]} 16. Rae1 {[%clk 00:08:28]}
{[%emt 00:13:36]} exf3 {[%clk 00:49:48]} {[%emt 00:00:55]} 17. gxf3 {[%clk
00:08:30]} {[%emt 00:00:28]} Nf5 {[%clk 00:49:44]} {[%emt 00:00:34]} 18. Qg5
{[%clk 00:04:18]} {[%emt 00:04:41]} Bh6 {[%clk 00:46:20]} {[%emt 00:03:55]} 19.
Qf6 {[%clk 00:03:28]} {[%emt 00:01:18]} Nd4 {[%clk 00:40:28]} {[%emt 00:06:23]}
20. Re7 {[%clk 00:01:07]} {[%emt 00:02:51]} Bg7 {[%clk 00:35:58]} {[%emt
00:05:01]} 21. Re5 {[%clk 00:00:31]} {[%emt 00:01:06]} Qxe5 {[%clk 00:35:55]}
{[%emt 00:00:32]} 0-1

[Event "Mistrovství Čech mládeže 2023 - HD16"]
[Site "Harrachov, Czech Republic"]
[Date "2023.10.21"]
[Round "1.15"]
[White "Bohatyrov, Mykola"]
[Black "Bauer, Sebastian"]
[Result "1/2-1/2"]
[TimeControl "90m + 30s"]
[WhiteElo "1725"]
[BlackElo "1366"]

1. c4 {[%clk 01:27:20]} {[%emt 00:03:39]} e5 {[%clk 01:30:59]} {[%emt
00:00:01]} 2. Nc3 {[%clk 01:27:40]} {[%emt 00:00:10]} Nc6 {[%clk 01:27:12]}
{[%emt 00:04:16]} 3. g3 {[%clk 01:27:52]} {[%emt 00:00:18]} f5 {[%clk
01:24:49]} {[%emt 00:02:54]} 4. Bg2 {[%clk 01:28:00]} {[%emt 00:00:21]} Nf6
{[%clk 01:25:13]} {[%emt 00:00:05]} 5. d3 {[%clk 01:28:00]} {[%emt 00:00:31]}
Bb4 {[%clk 01:24:40]} {[%emt 00:01:02]} 6. Bd2 {[%clk 01:28:26]} {[%emt
00:00:05]} Bxc3 {[%clk 01:24:12]} {[%emt 00:00:58]} 7. Bxc3 {[%clk 01:28:51]}
{[%emt 00:00:05]} d6 {[%clk 01:24:33]} {[%emt 00:00:08]} 8. Nf3 {[%clk
01:28:54]} {[%emt 00:00:27]} O-O {[%clk 01:24:31]} {[%emt 00:00:33]} 9. O-O
{[%clk 01:29:10]} {[%emt 00:00:14]} Qe8 {[%clk 01:22:07]} {[%emt 00:02:54]} 10.
Qc2 {[%clk 01:27:49]} {[%emt 00:01:51]} Qh5 {[%clk 01:20:32]} {[%emt 00:02:05]}
11. Rfe1 {[%clk 01:26:57]} {[%emt 00:01:22]} f4 {[%clk 01:19:20]} {[%emt
00:01:42]} 12. b4 {[%clk 01:26:07]} {[%emt 00:01:20]} fxg3 {[%clk 01:14:21]}
{[%emt 00:05:29]} 13. hxg3 {[%clk 01:26:17]} {[%emt 00:00:19]} Bh3 {[%clk
01:08:59]} {[%emt 00:05:53]} 14. b5 {[%clk 01:22:02]} {[%emt 00:04:46]} Ng4
{[%clk 00:49:21]} {[%emt 00:20:07]} 15. Bh1 {[%clk 01:19:45]} {[%emt 00:02:47]}
Ne7 {[%clk 00:20:26]} {[%emt 00:29:26]} 16. Qd2 {[%clk 01:04:24]} {[%emt
00:15:51]} Bf1 {[%clk 00:14:20]} {[%emt 00:06:36]} 17. Qg5 {[%clk 01:01:48]}
{[%emt 00:03:06]} Qh3 {[%clk 00:11:17]} {[%emt 00:03:32]} 18. Qh4 {[%clk
01:01:27]} {[%emt 00:00:52]} Qxh4 {[%clk 00:06:56]} {[%emt 00:04:51]} 19. gxh4
{[%clk 01:01:27]} {[%emt 00:00:30]} Bh3 {[%clk 00:07:04]} {[%emt 00:00:21]} 20.
Bg2 {[%clk 00:45:22]} {[%emt 00:16:36]} Bxg2 {[%clk 00:07:07]} {[%emt
00:00:27]} 21. Kxg2 {[%clk 00:45:48]} {[%emt 00:00:04]} Ng6 {[%clk 00:06:30]}
{[%emt 00:01:07]} 22. Bd2 {[%clk 00:44:16]} {[%emt 00:02:02]} Nf6 {[%clk
00:06:13]} {[%emt 00:00:47]} 23. Rh1 {[%clk 00:37:06]} {[%emt 00:07:39]} e4
{[%clk 00:04:56]} {[%emt 00:01:48]} 24. Nd4 {[%clk 00:34:58]} {[%emt 00:02:38]}
Rae8 {[%clk 00:03:41]} {[%emt 00:01:45]} 25. a4 {[%clk 00:20:38]} {[%emt
00:14:49]} Ne5 {[%clk 00:02:12]} {[%emt 00:01:58]} 26. Rh3 {[%clk 00:20:17]}
{[%emt 00:00:49]} Nfg4 {[%clk 00:02:21]} {[%emt 00:00:24]} 27. Rf1 {[%clk
00:20:35]} {[%emt 00:00:11]} exd3 {[%clk 00:01:43]} {[%emt 00:01:09]} 28. exd3
{[%clk 00:20:58]} {[%emt 00:00:07]} Ng6 {[%clk 00:01:33]} {[%emt 00:00:40]} 29.
f4 {[%clk 00:20:31]} {[%emt 00:00:57]} Nh6 {[%clk 00:01:34]} {[%emt 00:00:29]}
30. h5 {[%clk 00:19:33]} {[%emt 00:01:27]} Ne7 {[%clk 00:01:41]} {[%emt
00:00:24]} 31. Ne6 {[%clk 00:17:38]} {[%emt 00:02:25]} Rf7 {[%clk 00:01:18]}
{[%emt 00:00:53]} 32. Nxc7 {[%clk 00:17:23]} {[%emt 00:00:46]} Rc8 {[%clk
00:01:43]} {[%emt 00:00:04]} 33. Ne6 {[%clk 00:17:43]} {[%emt 00:00:10]} Nef5
{[%clk 00:00:56]} {[%emt 00:01:17]} 34. Ng5 {[%clk 00:15:25]} {[%emt 00:02:48]}
Re7 {[%clk 00:01:06]} {[%emt 00:00:20]} 35. Ne4 {[%clk 00:15:41]} {[%emt
00:00:14]} d5 {[%clk 00:00:56]} {[%emt 00:00:40]} 36. Bb4 {[%clk 00:14:35]}
{[%emt 00:01:36]} dxe4 {[%clk 00:01:06]} {[%emt 00:00:21]} 37. Bxe7 {[%clk
00:14:36]} {[%emt 00:00:28]} Nxe7 {[%clk 00:01:35]} {[%emt 00:00:01]} 38. Re3
{[%clk 00:14:27]} {[%emt 00:00:39]} Nef5 {[%clk 00:00:37]} {[%emt 00:01:28]} 39.
Rxe4 {[%clk 00:14:47]} {[%emt 00:00:09]} Rd8 {[%clk 00:00:42]} {[%emt
00:00:25]} 40. Rd1 {[%clk 00:14:52]} {[%emt 00:00:25]} Rd4 {[%clk 00:00:48]}
{[%emt 00:00:24]} 41. Re8+ {[%clk 00:14:05]} {[%emt 00:01:17]} Kf7 {[%clk
00:01:10]} {[%emt 00:00:08]} 42. Ree1 {[%clk 00:12:24]} {[%emt 00:02:11]} Rxf4
{[%clk 00:00:54]} {[%emt 00:00:46]} 43. Rd2 {[%clk 00:11:10]} {[%emt 00:01:44]}
Nd4 {[%clk 00:00:43]} {[%emt 00:00:40]} 44. Rf2 {[%clk 00:10:47]} {[%emt
00:00:53]} Rxf2+ {[%emt 00:00:40]} 45. Kxf2 {[%clk 00:11:10]} {[%emt 00:00:05]}
Nhf5 {[%clk 00:00:45]} {[%emt 00:00:20]} 46. Re5 {[%clk 00:09:18]} {[%emt
00:02:22]} Kf6 {[%clk 00:00:37]} {[%emt 00:00:38]} 47. Rd5 {[%clk 00:08:45]}
{[%emt 00:01:03]} Ke6 {[%emt 00:00:37]} 48. Rd8 {[%clk 00:09:07]} {[%emt
00:00:06]} Nb3 {[%clk 00:00:37]} {[%emt 00:00:25]} 49. Ra8 {[%clk 00:07:57]}
{[%emt 00:01:40]} Nc5 {[%clk 00:00:47]} {[%emt 00:00:21]} 50. Rxa7 {[%clk
00:07:42]} {[%emt 00:00:45]} Nxd3+ {[%clk 00:01:16]} {[%emt 00:00:01]} 51. Ke2
{[%clk 00:06:21]} {[%emt 00:01:51]} Nc5 {[%clk 00:01:43]} {[%emt 00:00:03]} 52.
a5 {[%clk 00:05:45]} {[%emt 00:01:06]} Ng3+ {[%clk 00:00:50]} {[%emt 00:01:23]}
53. Ke3 {[%clk 00:05:42]} {[%emt 00:00:29]} Nxh5 {[%clk 00:01:16]} {[%emt
00:00:07]} 54. Kd4 {[%clk 00:04:28]} {[%emt 00:01:44]} Kd6 {[%clk 00:00:36]}
{[%emt 00:01:10]} 55. a6 {[%clk 00:01:13]} {[%emt 00:03:46]} bxa6 {[%clk
00:00:48]} {[%emt 00:00:17]} 56. bxa6 {[%clk 00:01:40]} {[%emt 00:00:03]} Kc6
{[%clk 00:00:52]} {[%emt 00:00:26]} 57. Ra8 {[%clk 00:00:47]} {[%emt 00:01:22]}
Ne6+ {[%clk 00:00:33]} {[%emt 00:00:49]} 58. Ke5 {[%clk 00:00:58]} {[%emt
00:00:19]} Nc7 {[%clk 00:00:36]} {[%emt 00:00:28]} 59. Rc8 {[%clk 00:00:38]}
{[%emt 00:00:50]} Kd7 {[%clk 00:00:34]} {[%emt 00:00:32]} 60. Rh8 {[%clk
00:00:34]} {[%emt 00:00:33]} Nxa6 {[%clk 00:01:03]} {[%emt 00:00:01]} 61. Rxh7
{[%clk 00:01:03]} {[%emt 00:00:01]} Kc6 {[%clk 00:00:37]} {[%emt 00:00:56]} 62.
Rxh5 {[%clk 00:01:22]} {[%emt 00:00:10]} Kc5 {[%clk 00:01:06]} {[%emt
00:00:01]} 63. Rh4 {[%clk 00:01:50]} {[%emt 00:00:03]} Nb4 {[%clk 00:00:52]}
{[%emt 00:00:44]} 64. Re4 {[%clk 00:01:27]} {[%emt 00:00:51]} Nd3 {[%clk
00:00:53]} {[%emt 00:00:30]} 65. Kf5 {[%clk 00:01:33]} {[%emt 00:00:24]} Nb2
{[%clk 00:01:05]} {[%emt 00:00:18]} 66. Kg6 {[%clk 00:01:54]} {[%emt 00:00:09]}
Nxc4 {[%clk 00:01:28]} {[%emt 00:00:08]} 67. Kxg7 {[%clk 00:02:19]} {[%emt
00:00:05]} Kd5 {[%clk 00:01:43]} {[%emt 00:00:16]} 68. Rg4 {[%clk 00:02:34]}
{[%emt 00:00:15]} Ne3 {[%clk 00:01:40]} {[%emt 00:00:31]} 69. Rg5+ {[%clk
00:02:53]} {[%emt 00:00:12]} Ke4 {[%clk 00:01:56]} {[%emt 00:00:14]} 70. Kf6
{[%clk 00:03:13]} {[%emt 00:00:10]} Kd4 {[%clk 00:01:17]} {[%emt 00:01:08]} 71.
Ke6 {[%clk 00:03:34]} {[%emt 00:00:09]} Ke4 {[%clk 00:01:29]} {[%emt 00:00:15]}
72. Kd6 {[%clk 00:03:41]} {[%emt 00:00:26]} Nc4+ {[%clk 00:00:41]} {[%emt
00:01:19]} 73. Kc5 {[%clk 00:03:45]} {[%emt 00:00:26]} Ne5 {[%clk 00:00:57]}
{[%emt 00:00:13]} 74. Kb4 {[%clk 00:04:00]} {[%emt 00:00:15]} Kd4 {[%clk
00:01:05]} {[%emt 00:00:22]} 75. Rh5 {[%clk 00:04:19]} {[%emt 00:00:12]} Ke4
{[%clk 00:01:06]} {[%emt 00:00:30]} 76. Kc3 {[%clk 00:04:44]} {[%emt 00:00:05]}
Nf3 {[%clk 00:00:41]} {[%emt 00:00:53]} 77. Ra5 {[%clk 00:04:42]} {[%emt
00:00:33]} Ne5 {[%clk 00:00:47]} {[%emt 00:00:23]} 78. Ra1 {[%clk 00:05:00]}
{[%emt 00:00:13]} Kd5 {[%clk 00:00:49]} {[%emt 00:00:29]} 1/2-1/2

[Event "Mistrovství Čech mládeže 2023 - HD16"]
[Site "Harrachov, Czech Republic"]
[Date "2023.10.21"]
[Round "1.16"]
[White "Zahradník, Viktor Ferdinand"]
[Black "Stein, Michael"]
[Result "0-1"]
[TimeControl "90m + 30s"]
[WhiteElo "1360"]
[BlackElo "1717"]

1. f4 {[%clk 01:30:56]} {[%emt 00:00:03]} d5 {[%clk 01:30:48]} {[%emt
00:00:13]} 2. Nf3 {[%clk 01:31:20]} {[%emt 00:00:06]} Nf6 {[%clk 01:31:04]}
{[%emt 00:00:15]} 3. b3 {[%clk 01:31:44]} {[%emt 00:00:06]} e6 {[%clk
01:30:15]} {[%emt 00:01:18]} 4. Bb2 {[%clk 01:32:08]} {[%emt 00:00:06]} Bd6
{[%clk 01:29:29]} {[%emt 00:01:16]} 5. e3 {[%clk 01:32:32]} {[%emt 00:00:06]}
Nc6 {[%clk 01:28:51]} {[%emt 00:01:09]} 6. Bb5 {[%clk 01:32:53]} {[%emt
00:00:09]} Bd7 {[%clk 01:28:16]} {[%emt 00:01:05]} 7. d3 {[%clk 01:32:51]}
{[%emt 00:00:31]} a6 {[%clk 01:19:19]} {[%emt 00:09:29]} 8. Bxc6 {[%clk
01:33:12]} {[%emt 00:00:09]} Bxc6 {[%clk 01:19:41]} {[%emt 00:00:08]} 9. Ne5
{[%clk 01:33:34]} {[%emt 00:00:07]} Qe7 {[%clk 01:17:06]} {[%emt 00:03:05]} 10.
Qe2 {[%clk 01:30:29]} {[%emt 00:03:35]} Nd7 {[%clk 01:11:19]} {[%emt 00:06:17]}
11. Qh5 {[%clk 01:23:45]} {[%emt 00:07:14]} Bxe5 {[%clk 00:59:59]} {[%emt
00:11:51]} 12. Bxe5 {[%clk 01:22:47]} {[%emt 00:01:28]} O-O-O {[%clk 00:58:49]}
{[%emt 00:01:41]} 13. Bb2 {[%clk 01:16:43]} {[%emt 00:06:33]} f6 {[%clk
00:56:26]} {[%emt 00:02:53]} 14. Ba3 {[%clk 01:16:53]} {[%emt 00:00:20]} Qe8
{[%clk 00:56:03]} {[%emt 00:00:51]} 15. Qg4 {[%clk 01:16:31]} {[%emt 00:00:55]}
g6 {[%clk 00:51:44]} {[%emt 00:04:49]} 16. Nd2 {[%clk 01:13:07]} {[%emt
00:03:53]} f5 {[%clk 00:48:26]} {[%emt 00:03:48]} 17. Qh4 {[%clk 01:11:20]}
{[%emt 00:02:17]} Qf7 {[%clk 00:44:13]} {[%emt 00:04:42]} 18. Nf3 {[%clk
01:09:10]} {[%emt 00:02:41]} h6 {[%clk 00:40:24]} {[%emt 00:04:19]} 19. Bb2
{[%clk 01:09:11]} {[%emt 00:00:29]} Rh7 {[%clk 00:38:44]} {[%emt 00:02:10]} 20.
Ne5 {[%clk 01:07:20]} {[%emt 00:02:21]} Nxe5 {[%clk 00:38:57]} {[%emt
00:00:18]} 21. Bxe5 {[%clk 01:07:43]} {[%emt 00:00:06]} g5 {[%clk 00:37:53]}
{[%emt 00:01:34]} 22. fxg5 {[%clk 01:02:32]} {[%emt 00:05:40]} hxg5 {[%clk
00:37:58]} {[%emt 00:00:25]} 23. Qxg5 {[%clk 01:01:24]} {[%emt 00:01:39]} Rg8
{[%clk 00:37:23]} {[%emt 00:01:05]} 24. Qf4 {[%clk 00:59:12]} {[%emt 00:02:42]}
Rxg2 {[%clk 00:37:09]} {[%emt 00:00:46]} 25. O-O-O {[%clk 00:59:11]} {[%emt
00:00:30]} Rg4 {[%clk 00:30:14]} {[%emt 00:07:25]} 26. Qf2 {[%clk 00:57:23]}
{[%emt 00:02:20]} Qh5 {[%clk 00:27:18]} {[%emt 00:03:25]} 27. d4 {[%clk
00:56:16]} {[%emt 00:01:37]} Rh6 {[%clk 00:25:45]} {[%emt 00:02:04]} 28. Rdg1
{[%clk 00:53:47]} {[%emt 00:02:59]} b6 {[%clk 00:22:03]} {[%emt 00:04:13]} 29.
Rxg4 {[%clk 00:49:53]} {[%emt 00:04:23]} Qxg4 {[%clk 00:18:37]} {[%emt
00:03:56]} 30. Rg1 {[%clk 00:50:08]} {[%emt 00:00:15]} Qh5 {[%clk 00:18:14]}
{[%emt 00:00:53]} 31. Rg8+ {[%clk 00:47:12]} {[%emt 00:03:26]} Be8 {[%clk
00:16:23]} {[%emt 00:02:21]} 32. Qf1 {[%clk 00:41:33]} {[%emt 00:06:09]} Kb7
{[%clk 00:15:22]} {[%emt 00:01:31]} 33. Qg2 {[%clk 00:41:50]} {[%emt 00:00:12]}
Rg6 {[%clk 00:14:31]} {[%emt 00:01:21]} 34. Rxg6 {[%clk 00:42:10]} {[%emt
00:00:11]} Bxg6 {[%clk 00:14:25]} {[%emt 00:00:36]} 35. c4 {[%clk 00:39:32]}
{[%emt 00:03:08]} f4 {[%clk 00:12:36]} {[%emt 00:02:19]} 36. exf4 {[%clk
00:37:38]} {[%emt 00:02:24]} Qf5 {[%clk 00:12:58]} {[%emt 00:00:09]} 37. Kb2
{[%clk 00:37:35]} {[%emt 00:00:32]} c6 {[%clk 00:12:21]} {[%emt 00:01:08]} 38.
cxd5 {[%clk 00:36:03]} {[%emt 00:02:01]} exd5 {[%clk 00:11:36]} {[%emt
00:01:15]} 39. h4 {[%clk 00:33:26]} {[%emt 00:03:06]} Qb1+ {[%clk 00:10:52]}
{[%emt 00:01:14]} 40. Ka3 {[%clk 00:28:10]} {[%emt 00:05:46]} b5 {[%clk
00:09:54]} {[%emt 00:01:27]} 41. Qb2 {[%clk 00:20:48]} {[%emt 00:07:53]} b4+
{[%clk 00:10:01]} {[%emt 00:00:24]} 0-1